[Event "*** Titled Tuesday Blitz"]
[Site "Chess.com"]
[Date "2020.05.05"]
[Round "2"]
[White "Fighter008"]
[Black "Spartakus1975"]
[Result "1-0"]
[WhiteElo "2535"]
[BlackElo "2741"]
[TimeControl "180+1"]
[EndTime "10:20:42 PDT"]
[Termination "Fighter008 won by checkmate"]

1. e4 {[%clk 0:03:00.9]} 1... e6 {[%clk 0:02:59.5]} 2. d4 {[%clk 0:03:00.4]}
2... d5 {[%clk 0:02:57.5]} 3. Nc3 {[%clk 0:03:01]} 3... Nf6 {[%clk 0:02:53.6]}
4. Bg5 {[%clk 0:03:00.2]} 4... Bb4 {[%clk 0:02:50.9]} 5. e5 {[%clk 0:03:00]}
5... h6 {[%clk 0:02:50.1]} 6. Bd2 {[%clk 0:02:59.9]} 6... Bxc3 {[%clk
0:02:49.7]} 7. bxc3 {[%clk 0:03:00.8]} 7... Ne4 {[%clk 0:02:50.2]} 8. Qg4 {[%clk
0:03:00.9]} 8... Kf8 {[%clk 0:02:49.3]} 9. Bd3 {[%clk 0:03:00.9]} 9... Nxd2
{[%clk 0:02:48.3]} 10. Kxd2 {[%clk 0:03:01.8]} 10... c5 {[%clk 0:02:48.1]} 11.
h4 {[%clk 0:03:01.5]} 11... c4 {[%clk 0:02:44.8]} 12. Be2 {[%clk 0:03:01]} 12...
Bd7 {[%clk 0:02:44.5]} 13. Nf3 {[%clk 0:02:54.7]} 13... b5 {[%clk 0:02:44.1]}
14. Qf4 {[%clk 0:02:49.8]} 14... a5 {[%clk 0:02:34]} 15. a3 {[%clk 0:02:47.6]}
15... Nc6 {[%clk 0:02:33.3]} 16. Rhb1 {[%clk 0:02:44.2]} 16... b4 {[%clk
0:02:03.6]} 17. axb4 {[%clk 0:02:41]} 17... axb4 {[%clk 0:02:03.6]} 18. cxb4
{[%clk 0:02:30.6]} 18... Rxa1 {[%clk 0:01:57.6]} 19. Rxa1 {[%clk 0:02:31.5]}
19... Nxb4 {[%clk 0:01:57.8]} 20. Qe3 {[%clk 0:02:31.4]} 20... Kg8 {[%clk
0:01:39.1]} 21. Qc3 {[%clk 0:02:15.9]} 21... Nc6 {[%clk 0:01:37.7]} 22. g4
{[%clk 0:02:06.3]} 22... f6 {[%clk 0:01:19.2]} 23. exf6 {[%clk 0:01:47.2]} 23...
Qxf6 {[%clk 0:01:17.9]} 24. Qe3 {[%clk 0:01:47.8]} 24... Kf7 {[%clk 0:01:03.7]}
25. g5 {[%clk 0:01:46]} 25... hxg5 {[%clk 0:01:01.8]} 26. Nxg5+ {[%clk
0:01:45.3]} 26... Ke7 {[%clk 0:01:01.3]} 27. Qa3+ {[%clk 0:01:38.7]} 27... Ke8
{[%clk 0:00:56]} 28. Qa8+ {[%clk 0:01:33.7]} 28... Nd8 {[%clk 0:00:54.6]} 29.
Nf3 {[%clk 0:01:32.9]} 29... Rxh4 {[%clk 0:00:46.3]} 30. c3 {[%clk 0:01:23.2]}
30... Rh3 {[%clk 0:00:27.2]} 31. Qb8 {[%clk 0:00:46.1]} 31... Rxf3 {[%clk
0:00:25.8]} 32. Bxf3 {[%clk 0:00:46.2]} 32... Qxf3 {[%clk 0:00:26.3]} 33. Ra8
{[%clk 0:00:46.7]} 33... Qxf2+ {[%clk 0:00:24.9]} 34. Kd1 {[%clk 0:00:47]} 34...
Qf1+ {[%clk 0:00:22.6]} 35. Kd2 {[%clk 0:00:47.2]} 35... Qd3+ {[%clk 0:00:22.2]}
36. Ke1 {[%clk 0:00:47.5]} 36... Qxc3+ {[%clk 0:00:22.1]} 37. Kf1 {[%clk
0:00:48.4]} 37... Qd3+ {[%clk 0:00:20.5]} 38. Ke1 {[%clk 0:00:48.1]} 38... Qe3+
{[%clk 0:00:20]} 39. Kf1 {[%clk 0:00:47.7]} 39... Qg5 {[%clk 0:00:19.2]} 40. Qc7
{[%clk 0:00:44.6]} 40... Qf6+ {[%clk 0:00:16.6]} 41. Kg2 {[%clk 0:00:43.8]}
41... g5 {[%clk 0:00:15.8]} 42. Ra7 {[%clk 0:00:42.1]} 42... Qe7 {[%clk
0:00:15.9]} 43. Ra1 {[%clk 0:00:39.8]} 43... Nc6 {[%clk 0:00:09.4]} 44. Rh1
{[%clk 0:00:35.9]} 44... Nxd4 {[%clk 0:00:09.2]} 45. Rh8+ {[%clk 0:00:35.6]}
45... Kf7 {[%clk 0:00:07]} 46. Rh7+ {[%clk 0:00:36]} 46... Kf6 {[%clk 0:00:07]}
47. Rxe7 {[%clk 0:00:36.1]} 47... Kxe7 {[%clk 0:00:07.5]} 48. Qc5+ {[%clk
0:00:36.2]} 48... Kf6 {[%clk 0:00:05.9]} 49. Qxd4+ {[%clk 0:00:36.3]} 49... Kf5
{[%clk 0:00:06.4]} 50. Kg3 {[%clk 0:00:36.1]} 50... Bc6 {[%clk 0:00:05.7]} 51.
Qc5 {[%clk 0:00:35.8]} 51... Be8 {[%clk 0:00:05.7]} 52. Qe7 {[%clk 0:00:35.7]}
52... Bg6 {[%clk 0:00:05.3]} 53. Qc5 {[%clk 0:00:34.1]} 53... Ke4 {[%clk
0:00:05.1]} 54. Kg4 {[%clk 0:00:30.9]} 54... Bf5+ {[%clk 0:00:03.9]} 55. Kxg5
{[%clk 0:00:31.1]} 55... Kd3 {[%clk 0:00:04.6]} 56. Kf4 {[%clk 0:00:30.3]} 56...
d4 {[%clk 0:00:04]} 57. Ke5 {[%clk 0:00:29.5]} 57... c3 {[%clk 0:00:02.7]} 58.
Qxd4+ {[%clk 0:00:29.8]} 58... Kc2 {[%clk 0:00:03.3]} 59. Qa4+ {[%clk
0:00:28.2]} 59... Kd2 {[%clk 0:00:02.9]} 60. Qf4+ {[%clk 0:00:27.5]} 60... Kd3
{[%clk 0:00:02.2]} 61. Qf3+ {[%clk 0:00:27.3]} 61... Kd2 {[%clk 0:00:02.4]} 62.
Qf2+ {[%clk 0:00:27.4]} 62... Kd1 {[%clk 0:00:01.9]} 63. Qf1+ {[%clk 0:00:25.6]}
63... Kd2 {[%clk 0:00:02.1]} 64. Qg2+ {[%clk 0:00:21]} 64... Kd1 {[%clk
0:00:01.9]} 65. Qg1+ {[%clk 0:00:20.8]} 65... Kd2 {[%clk 0:00:02.1]} 66. Qd4+
{[%clk 0:00:21.1]} 66... Kc2 {[%clk 0:00:01.8]} 67. Kf4 {[%clk 0:00:20.5]} 67...
Kb3 {[%clk 0:00:01.6]} 68. Qb6+ {[%clk 0:00:20.4]} 68... Kc2 {[%clk 0:00:01.6]}
69. Ke3 {[%clk 0:00:20.7]} 69... Kc1 {[%clk 0:00:01.9]} 70. Qb4 {[%clk
0:00:17.2]} 70... c2 {[%clk 0:00:02.8]} 71. Qd2+ {[%clk 0:00:17.3]} 71... Kb1
{[%clk 0:00:02.9]} 72. Qb4+ {[%clk 0:00:17.2]} 72... Kc1 {[%clk 0:00:03.5]} 73.
Ke2 {[%clk 0:00:16.6]} 73... e5 {[%clk 0:00:03]} 74. Ke1 {[%clk 0:00:16.7]}
74... Bd3 {[%clk 0:00:02.3]} 75. Qd2+ {[%clk 0:00:16.4]} 75... Kb1 {[%clk
0:00:02.2]} 76. Qxd3 {[%clk 0:00:16.8]} 76... e4 {[%clk 0:00:03]} 77. Qb3+
{[%clk 0:00:16.9]} 77... Kc1 {[%clk 0:00:03.3]} 78. Ke2 {[%clk 0:00:17.2]} 78...
e3 {[%clk 0:00:03.7]} 79. Kd3 {[%clk 0:00:17.2]} 79... Kd1 {[%clk 0:00:02.6]}
80. Qxc2+ {[%clk 0:00:17.3]} 80... Ke1 {[%clk 0:00:03.4]} 81. Qe2# {[%clk
0:00:17.3]} 1-0

[Event "*** Titled Tuesday Blitz"]
[Site "Chess.com"]
[Date "2020.05.05"]
[Round "2"]
[White "oskariot"]
[Black "dennisodessa"]
[Result "0-1"]
[WhiteElo "2607"]
[BlackElo "2300"]
[TimeControl "180+1"]
[EndTime "10:20:53 PDT"]
[Termination "dennisodessa won on time"]

1. e4 {[%clk 0:03:00.9]} 1... e6 {[%clk 0:03:00.9]} 2. d4 {[%clk 0:03:00.8]}
2... d5 {[%clk 0:03:00.8]} 3. Nd2 {[%clk 0:03:01.4]} 3... Nf6 {[%clk 0:02:59.9]}
4. e5 {[%clk 0:03:01.3]} 4... Nfd7 {[%clk 0:03:00.4]} 5. f4 {[%clk 0:03:01.9]}
5... c5 {[%clk 0:03:00.6]} 6. c3 {[%clk 0:03:02.6]} 6... Nc6 {[%clk 0:03:00.7]}
7. Ndf3 {[%clk 0:03:03.2]} 7... Qb6 {[%clk 0:02:59.2]} 8. a3 {[%clk 0:03:02.5]}
8... f6 {[%clk 0:02:43.4]} 9. Bd3 {[%clk 0:03:01]} 9... Be7 {[%clk 0:02:38.1]}
10. Ne2 {[%clk 0:03:00.7]} 10... c4 {[%clk 0:02:26.7]} 11. Bc2 {[%clk
0:02:57.5]} 11... Na5 {[%clk 0:02:27.6]} 12. Rb1 {[%clk 0:02:48.8]} 12... Nb3
{[%clk 0:02:23.4]} 13. Be3 {[%clk 0:02:46.9]} 13... a5 {[%clk 0:02:15.5]} 14.
O-O {[%clk 0:02:40.4]} 14... a4 {[%clk 0:02:14.3]} 15. Kh1 {[%clk 0:02:33.3]}
15... f5 {[%clk 0:02:09.6]} 16. Rg1 {[%clk 0:02:33.3]} 16... h5 {[%clk
0:01:56.1]} 17. Ng5 {[%clk 0:02:33.1]} 17... Nf8 {[%clk 0:01:55.8]} 18. g3
{[%clk 0:02:27.6]} 18... Bd7 {[%clk 0:01:52.9]} 19. Kg2 {[%clk 0:02:22.6]} 19...
O-O-O {[%clk 0:01:51]} 20. Kf2 {[%clk 0:02:23]} 20... Bxg5 {[%clk 0:01:50.4]}
21. fxg5 {[%clk 0:02:22.9]} 21... Ng6 {[%clk 0:01:38.3]} 22. h4 {[%clk
0:01:22.4]} 22... Be8 {[%clk 0:01:29.5]} 23. Bf4 {[%clk 0:01:21.9]} 23... Ne7
{[%clk 0:01:21.9]} 24. Ke3 {[%clk 0:01:20.3]} 24... Bg6 {[%clk 0:01:19.1]} 25.
Kf2 {[%clk 0:01:18.8]} 25... Kd7 {[%clk 0:01:18.9]} 26. Be3 {[%clk 0:01:18.9]}
26... Kc6 {[%clk 0:01:19]} 27. Nf4 {[%clk 0:01:19]} 27... Bf7 {[%clk 0:01:17.4]}
28. Qe2 {[%clk 0:01:15]} 28... Rdf8 {[%clk 0:01:15.1]} 29. Bd1 {[%clk
0:01:14.7]} 29... Kd7 {[%clk 0:00:55.7]} 30. Qc2 {[%clk 0:01:08.5]} 30... g6
{[%clk 0:00:48.6]} 31. Bf3 {[%clk 0:01:08.4]} 31... Be8 {[%clk 0:00:47.7]} 32.
Rbf1 {[%clk 0:01:08.1]} 32... Na5 {[%clk 0:00:46.7]} 33. Qxa4+ {[%clk
0:01:03.4]} 33... Kc7 {[%clk 0:00:40.4]} 34. Qc2 {[%clk 0:01:03.3]} 34... Nb3
{[%clk 0:00:40.4]} 35. Bd1 {[%clk 0:01:00]} 35... Ba4 {[%clk 0:00:39.9]} 36. Qe2
{[%clk 0:00:56.8]} 36... Kd7 {[%clk 0:00:36.4]} 37. Kg2 {[%clk 0:00:57.2]} 37...
Rf7 {[%clk 0:00:34.1]} 38. Kh2 {[%clk 0:00:56.7]} 38... Rff8 {[%clk 0:00:34.2]}
39. Bc2 {[%clk 0:00:56.6]} 39... Rf7 {[%clk 0:00:33.9]} 40. Ng2 {[%clk
0:00:54.6]} 40... Rff8 {[%clk 0:00:33.5]} 41. Bf4 {[%clk 0:00:55]} 41... Rf7
{[%clk 0:00:33.1]} 42. Ne3 {[%clk 0:00:55.3]} 42... Rc8 {[%clk 0:00:31.6]} 43.
Rf2 {[%clk 0:00:50.5]} 43... Kc7 {[%clk 0:00:28]} 44. Bd1 {[%clk 0:00:49.1]}
44... Kb8 {[%clk 0:00:27.9]} 45. Nc2 {[%clk 0:00:48.5]} 45... Na5 {[%clk
0:00:22]} 46. Nb4 {[%clk 0:00:44.7]} 46... Nb3 {[%clk 0:00:21.8]} 47. Bc2 {[%clk
0:00:42.5]} 47... Ka7 {[%clk 0:00:20.3]} 48. Bb1 {[%clk 0:00:42.5]} 48... Rcf8
{[%clk 0:00:20.3]} 49. Kg2 {[%clk 0:00:42.4]} 49... Rc8 {[%clk 0:00:20.2]} 50.
Kf3 {[%clk 0:00:42.4]} 50... Rcf8 {[%clk 0:00:20.6]} 51. Ke3 {[%clk 0:00:40.7]}
51... Nc6 {[%clk 0:00:20.7]} 52. Rd1 {[%clk 0:00:33.2]} 52... Nxb4 {[%clk
0:00:19.9]} 53. axb4 {[%clk 0:00:32]} 53... Kb8 {[%clk 0:00:19.2]} 54. Bc2
{[%clk 0:00:31.9]} 54... Kc7 {[%clk 0:00:19.2]} 55. Rff1 {[%clk 0:00:27.3]}
55... Ra8 {[%clk 0:00:19]} 56. Kf3 {[%clk 0:00:27.7]} 56... Ra7 {[%clk
0:00:18.1]} 57. Kg2 {[%clk 0:00:28.1]} 57... Rf8 {[%clk 0:00:18.4]} 58. Kh2
{[%clk 0:00:28]} 58... Rh8 {[%clk 0:00:17.9]} 59. Rh1 {[%clk 0:00:27.4]} 59...
Bb5 {[%clk 0:00:17.6]} 60. Rb1 {[%clk 0:00:25.3]} 60... Qc6 {[%clk 0:00:17.5]}
61. Kg2 {[%clk 0:00:24.9]} 61... Ra2 {[%clk 0:00:16.5]} 62. Kf2 {[%clk
0:00:24.7]} 62... Qe8 {[%clk 0:00:16.5]} 63. Ke3 {[%clk 0:00:23.5]} 63... Qd7
{[%clk 0:00:16.5]} 64. Qd1 {[%clk 0:00:18.6]} 64... Ba4 {[%clk 0:00:15.3]} 65.
Qe2 {[%clk 0:00:18.8]} 65... Kb6 {[%clk 0:00:15]} 66. g4 {[%clk 0:00:16.9]}
66... hxg4 {[%clk 0:00:13.8]} 67. h5 {[%clk 0:00:11.8]} 67... gxh5 {[%clk
0:00:14.7]} 68. Rh4 {[%clk 0:00:11.8]} 68... Qf7 {[%clk 0:00:13.3]} 69. Kf2
{[%clk 0:00:11.8]} 69... Qg6 {[%clk 0:00:13.1]} 70. Kg3 {[%clk 0:00:12.2]} 70...
Bb5 {[%clk 0:00:12]} 71. Qh2 {[%clk 0:00:11.5]} 71... Raa8 {[%clk 0:00:10.4]}
72. Rh1 {[%clk 0:00:10.6]} 72... Ra2 {[%clk 0:00:10]} 73. Bxb3 {[%clk
0:00:10.2]} 73... cxb3 {[%clk 0:00:09.7]} 74. Rxh5 {[%clk 0:00:08.9]} 74... Rxh5
{[%clk 0:00:08.7]} 75. Qxh5 {[%clk 0:00:09.8]} 75... Qxh5 {[%clk 0:00:08.7]} 76.
Rxh5 {[%clk 0:00:10.7]} 76... Rxb2 {[%clk 0:00:09.1]} 77. g6 {[%clk 0:00:11.6]}
77... Be8 {[%clk 0:00:08]} 78. g7 {[%clk 0:00:05.8]} 78... Bf7 {[%clk
0:00:08.3]} 79. Rh6 {[%clk 0:00:06.2]} 79... Rc2 {[%clk 0:00:08]} 80. Rf6 {[%clk
0:00:05.8]} 80... Bg8 {[%clk 0:00:07.9]} 81. Rf8 {[%clk 0:00:03.6]} 81... b2
{[%clk 0:00:07.9]} 82. Rxg8 {[%clk 0:00:03.9]} 82... b1=Q {[%clk 0:00:08]} 83.
Rf8 {[%clk 0:00:02.4]} 83... Rxc3+ {[%clk 0:00:07.8]} 84. Kh4 {[%clk 0:00:02.7]}
84... Rh3+ {[%clk 0:00:06.8]} 85. Kg5 {[%clk 0:00:02.9]} 85... Qh1 {[%clk
0:00:04]} 86. g8=Q {[%clk 0:00:02.5]} 86... Rh4 {[%clk 0:00:04.1]} 87. Qxe6+
{[%clk 0:00:01.6]} 87... Kb5 {[%clk 0:00:04.5]} 0-1

[Event "*** Titled Tuesday Blitz"]
[Site "Chess.com"]
[Date "2020.05.05"]
[Round "2"]
[White "BillCoe"]
[Black "Kopytkin"]
[Result "0-1"]
[WhiteElo "2016"]
[BlackElo "2361"]
[TimeControl "180+1"]
[EndTime "10:21:02 PDT"]
[Termination "Kopytkin won on time"]

1. e4 {[%clk 0:03:00.9]} 1... Nf6 {[%clk 0:02:58.9]} 2. e5 {[%clk 0:02:59.8]}
2... Nd5 {[%clk 0:02:59.1]} 3. g3 {[%clk 0:02:59.3]} 3... d6 {[%clk 0:02:58.6]}
4. exd6 {[%clk 0:03:00.2]} 4... cxd6 {[%clk 0:02:55.9]} 5. Bg2 {[%clk
0:03:00.4]} 5... Nf6 {[%clk 0:02:55]} 6. Nf3 {[%clk 0:03:00.7]} 6... d5 {[%clk
0:02:55.3]} 7. O-O {[%clk 0:03:00.6]} 7... Nc6 {[%clk 0:02:55.8]} 8. d4 {[%clk
0:03:00.2]} 8... Bg4 {[%clk 0:02:55.9]} 9. c3 {[%clk 0:02:56.9]} 9... e6 {[%clk
0:02:55.2]} 10. h3 {[%clk 0:02:56.2]} 10... Bh5 {[%clk 0:02:51.5]} 11. Be3
{[%clk 0:02:52]} 11... Be7 {[%clk 0:02:50.8]} 12. Nbd2 {[%clk 0:02:49.9]} 12...
O-O {[%clk 0:02:50.7]} 13. Re1 {[%clk 0:02:50.1]} 13... b5 {[%clk 0:02:50.5]}
14. b4 {[%clk 0:02:46.9]} 14... a5 {[%clk 0:02:47]} 15. a3 {[%clk 0:02:44.6]}
15... Nd7 {[%clk 0:02:20.5]} 16. Nb3 {[%clk 0:02:42]} 16... Ra7 {[%clk
0:01:56.9]} 17. Qd3 {[%clk 0:02:33.4]} 17... Qb6 {[%clk 0:01:54.5]} 18. Nc5
{[%clk 0:02:31.9]} 18... Bg6 {[%clk 0:01:52.2]} 19. Qd2 {[%clk 0:02:22.9]} 19...
Rfa8 {[%clk 0:01:52]} 20. Nxd7 {[%clk 0:02:14.2]} 20... Rxd7 {[%clk 0:01:51.2]}
21. Ne5 {[%clk 0:02:10.6]} 21... Nxe5 {[%clk 0:01:44.3]} 22. dxe5 {[%clk
0:02:11.5]} 22... Qc6 {[%clk 0:01:35.7]} 23. Bd4 {[%clk 0:01:48.3]} 23... Rc7
{[%clk 0:01:34.7]} 24. f4 {[%clk 0:01:42.5]} 24... Rcc8 {[%clk 0:01:11.4]} 25.
Bf1 {[%clk 0:01:42]} 25... Ra6 {[%clk 0:01:03.9]} 26. Bd3 {[%clk 0:01:41.4]}
26... axb4 {[%clk 0:00:55.7]} 27. axb4 {[%clk 0:01:32.9]} 27... Rca8 {[%clk
0:00:54.2]} 28. Rxa6 {[%clk 0:01:26.9]} 28... Qxa6 {[%clk 0:00:53.6]} 29. g4
{[%clk 0:01:20.9]} 29... Bxd3 {[%clk 0:00:52.6]} 30. Qxd3 {[%clk 0:01:21.8]}
30... Qc6 {[%clk 0:00:50.5]} 31. Re2 {[%clk 0:01:13.7]} 31... Ra3 {[%clk
0:00:49.9]} 32. f5 {[%clk 0:01:05.5]} 32... Bxb4 {[%clk 0:00:47.3]} 33. fxe6
{[%clk 0:01:02.6]} 33... fxe6 {[%clk 0:00:45]} 34. Rf2 {[%clk 0:00:56.7]} 34...
Be7 {[%clk 0:00:20.8]} 35. Qf3 {[%clk 0:00:47.8]} 35... Qe8 {[%clk 0:00:20.6]}
36. Rb2 {[%clk 0:00:40.8]} 36... b4 {[%clk 0:00:20.3]} 37. Qd3 {[%clk
0:00:33.3]} 37... b3 {[%clk 0:00:20.3]} 38. c4 {[%clk 0:00:31.1]} 38... Qa4
{[%clk 0:00:17.1]} 39. cxd5 {[%clk 0:00:30.2]} 39... exd5 {[%clk 0:00:17]} 40.
Bc3 {[%clk 0:00:26]} 40... Qc4 {[%clk 0:00:17]} 41. Qf3 {[%clk 0:00:21.6]} 41...
Ra1+ {[%clk 0:00:17.1]} 42. Kh2 {[%clk 0:00:20.1]} 42... Bg5 {[%clk 0:00:17.2]}
43. Rf2 {[%clk 0:00:18.5]} 43... Bf4+ {[%clk 0:00:11.4]} 44. Qxf4 {[%clk
0:00:18.8]} 44... Qxf4+ {[%clk 0:00:11.5]} 45. Rxf4 {[%clk 0:00:19.2]} 45... Rc1
{[%clk 0:00:11.8]} 46. Bd4 {[%clk 0:00:16.3]} 46... Rd1 {[%clk 0:00:12]} 47. Kg3
{[%clk 0:00:15.4]} 47... Rd3+ {[%clk 0:00:11.5]} 48. Kf2 {[%clk 0:00:14.4]}
48... b2 {[%clk 0:00:10.9]} 49. Bxb2 {[%clk 0:00:13.4]} 49... Rd2+ {[%clk
0:00:11.3]} 50. Ke3 {[%clk 0:00:12.2]} 50... Rxb2 {[%clk 0:00:11.9]} 51. e6
{[%clk 0:00:12.7]} 51... Rb6 {[%clk 0:00:09.7]} 52. Kd4 {[%clk 0:00:11.1]} 52...
Rxe6 {[%clk 0:00:09.8]} 53. Kxd5 {[%clk 0:00:11.2]} 53... Re3 {[%clk 0:00:10]}
54. h4 {[%clk 0:00:11.1]} 54... h6 {[%clk 0:00:10.4]} 55. g5 {[%clk 0:00:10.4]}
55... hxg5 {[%clk 0:00:10.3]} 56. hxg5 {[%clk 0:00:10.1]} 56... Kh7 {[%clk
0:00:10.7]} 57. Rf5 {[%clk 0:00:09]} 57... Kg6 {[%clk 0:00:10.3]} 58. Rf1 {[%clk
0:00:06.4]} 58... Kxg5 {[%clk 0:00:09.5]} 59. Rg1+ {[%clk 0:00:06.2]} 59... Kf6
{[%clk 0:00:09.8]} 60. Kd4 {[%clk 0:00:05.8]} 60... Re2 {[%clk 0:00:09]} 61.
Rf1+ {[%clk 0:00:05.3]} 61... Kg6 {[%clk 0:00:08.4]} 62. Rg1+ {[%clk 0:00:05.4]}
62... Kf7 {[%clk 0:00:08.5]} 63. Rf1+ {[%clk 0:00:05.1]} 63... Kg8 {[%clk
0:00:08.7]} 64. Kd3 {[%clk 0:00:05.4]} 64... Re6 {[%clk 0:00:07.8]} 65. Rg1
{[%clk 0:00:06.3]} 65... g6 {[%clk 0:00:07.9]} 66. Rf1 {[%clk 0:00:07.2]} 66...
Kg7 {[%clk 0:00:08.2]} 67. Rg1 {[%clk 0:00:07.3]} 67... Re5 {[%clk 0:00:08.2]}
68. Kd4 {[%clk 0:00:08.2]} 68... Re8 {[%clk 0:00:08.1]} 69. Kd5 {[%clk
0:00:07.1]} 69... Re2 {[%clk 0:00:07.3]} 70. Kd6 {[%clk 0:00:08]} 70... Kf6
{[%clk 0:00:06.9]} 71. Rf1+ {[%clk 0:00:08.3]} 71... Kg7 {[%clk 0:00:06.5]} 72.
Rg1 {[%clk 0:00:07.8]} 72... Kh7 {[%clk 0:00:06.4]} 73. Rh1+ {[%clk 0:00:07.4]}
73... Kg7 {[%clk 0:00:06]} 74. Rf1 {[%clk 0:00:07.6]} 74... Kh6 {[%clk
0:00:06.3]} 75. Kd7 {[%clk 0:00:07.9]} 75... g5 {[%clk 0:00:05.5]} 76. Rh1+
{[%clk 0:00:08]} 76... Kg6 {[%clk 0:00:05.8]} 77. Rf1 {[%clk 0:00:07.9]} 77...
g4 {[%clk 0:00:04.7]} 78. Rg1 {[%clk 0:00:07.4]} 78... Kg5 {[%clk 0:00:05]} 79.
Rf1 {[%clk 0:00:07.4]} 79... g3 {[%clk 0:00:05]} 80. Rf8 {[%clk 0:00:07.4]}
80... Kg4 {[%clk 0:00:05.2]} 81. Rg8+ {[%clk 0:00:07.6]} 81... Kh3 {[%clk
0:00:05.4]} 82. Rh8+ {[%clk 0:00:07.8]} 82... Kg2 {[%clk 0:00:05.7]} 83. Rg8
{[%clk 0:00:07.9]} 83... Re4 {[%clk 0:00:05.9]} 84. Rf8 {[%clk 0:00:07.5]} 84...
Kh2 {[%clk 0:00:05.5]} 85. Rh8+ {[%clk 0:00:06.2]} 85... Kg2 {[%clk 0:00:05.8]}
86. Kd6 {[%clk 0:00:04.8]} 86... Kf3 {[%clk 0:00:05.6]} 87. Kd5 {[%clk 0:00:04]}
87... Rg4 {[%clk 0:00:05]} 88. Rf8+ {[%clk 0:00:03.7]} 88... Ke3 {[%clk
0:00:05.3]} 89. Re8+ {[%clk 0:00:02.7]} 89... Kd3 {[%clk 0:00:05.5]} 90. Re1
{[%clk 0:00:02.2]} 90... g2 {[%clk 0:00:05.8]} 91. Rg1 {[%clk 0:00:01.5]} 91...
Ke2 {[%clk 0:00:06.2]} 92. Ke5 {[%clk 0:00:01.6]} 92... Kf2 {[%clk 0:00:06.5]}
93. Ra1 {[%clk 0:00:01.2]} 93... g1=Q {[%clk 0:00:06.5]} 94. Ra2+ {[%clk
0:00:01.4]} 94... Kg3 {[%clk 0:00:06.8]} 95. Ra3+ {[%clk 0:00:01.5]} 95... Kh4
{[%clk 0:00:07.1]} 0-1